bitfinex-derivatives/quotes_ETHF0:USTF0_20240925
["timestamp","ask_amount","ask_price","bid_price","bid_amount"]
[1727239878265,1.09,2632.4,2632.1,0.74839]
[1727239878455,2.56981368,2632.2,2632.1,0.7484]
[1727239878654,1.09,2632.2,2632.1,0.7484]
[1727239878862,2.56981368,2632.2,2632.1,0.7484]
[1727239879064,1.09,2632.2,2632.1,0.7484]
[1727239879268,2.07584605,2632.2,2632.1,0.7484]
[1727239880456,1.09,2632.2,2632.1,0.7484]
[1727239880657,2.07584605,2632.2,2632.1,0.7484]
[1727239881564,1.09,2632.2,2632.1,0.7484]
[1727239882967,2.07584605,2632.2,2631.8,41.1943]
[1727239883170,2.07584605,2632.2,2631.8,40.8]
[1727239883171,1.09,2631.9,2631.8,40.8]
[1727239883372,1.49,2631.9,2631.7,0.37995]
[1727239883555,0.7775,2631.8,2631.6,0.37996]
[1727239883869,1.09,2631.7,2631.6,8.22397922]
[1727239885267,1.09,2631.7,2631.5,0.7774]
[1727239885469,0.37997,2631.6,2631.2,0.3875]
[1727239885766,1.09,2631.3,2631.2,0.76753]
[1727239886157,1.09,2631.3,2631.2,8.59315285]
[1727239886574,1.09,2631.4,2631.3,0.38002]
[1727239893370,1.09,2631.4,2631.3,0.76562]
[1727239899780,1.4845,2631.4,2631.3,0.76562]
[1727239901776,3.58774,2631.9,2631.3,0.76562]
[1727239902076,1.09,2631.5,2631.4,0.7505]
[1727239902572,1.09,2631.7,2631.4,0.3705]
[1727239902869,1.09,2631.7,2631.6,0.37997]
[1727239913803,3.2078,2631.9,2631.8,1.32981]
[1727239914088,1.09,2632.1,2632.0,0.37992]
[1727239914476,4.2978,2632.1,2632.0,0.37992]
[1727239916384,5.5778,2632.1,2632.0,0.37992]
[1727239917684,5.5778,2632.1,2631.9,0.37993]
[1727239917883,2.37,2632.0,2631.9,0.37993]
[1727239918181,2.37,2632.0,2631.9,8.24433205]
[1727239920485,1.74114605,2632.2,2632.1,0.3799]
[1727239920680,0.7553,2632.2,2632.1,0.3799]
[1727239923190,1.38174605,2632.3,2632.2,0.37989]
[1727239923582,1.87571368,2632.3,2632.2,0.37989]
[1727239925690,0.3959,2632.3,2632.1,0.37989]
[1727239925896,2.37,2632.1,2632.0,0.77532]
[1727239926288,3.1399,2632.1,2632.0,8.63438161]
[1727239926618,4.99803107,2632.1,2632.0,7.85906161]
[1727239926791,2.24813107,2632.1,2632.0,7.85906161]
[1727239927011,4.99803107,2632.1,2631.9,8.49392417]
[1727239927191,4.99803107,2632.1,2631.9,0.37992]
[1727239927192,1.47821401,2632.0,2631.9,0.37992]
[1727239927382,1.47821401,2632.0,2631.7,3.2078]
[1727239927583,1.47821401,2632.0,2631.8,0.37994]
[1727239927584,3.84821401,2631.9,2631.8,0.37994]
[1727239927783,3.84821401,2631.9,2631.8,8.31431615]
[1727239927980,4.22814401,2631.9,2631.8,8.31431615]
[1727239928186,3.84821401,2631.9,2631.8,7.93437615]
[1727239928392,4.72307705,2631.9,2631.8,8.31431615]
[1727239928689,4.34314705,2631.9,2631.8,8.31431615]
[1727239929096,4.72307705,2631.9,2631.8,7.93437615]
[1727239929786,8.52307705,2631.9,2631.8,7.93437615]
[1727239929983,0.37997,2631.7,2631.5,0.37998]
[1727239930288,0.37999,2631.5,2631.4,0.37999]
[1727239930517,3.84835573,2631.5,2631.4,0.37999]
[1727239930893,4.22835573,2631.5,2631.3,8.15942488]
[1727239931095,3.84835573,2631.5,2631.3,7.77941488]
[1727239931295,4.22834573,2631.5,2631.3,8.15942488]
[1727239931497,1.47835573,2631.4,2631.3,7.77941488]
[1727239931999,0.38,2631.4,2631.3,7.77941488]
[1727239932298,4.7211618,2631.5,2631.3,8.15943488]
[1727239933689,1.47803983,2631.4,2631.3,8.15943488]
[1727239937390,1.85803983,2631.4,2631.3,7.77941488]
[1727239937997,1.47803983,2631.4,2631.3,8.15943488]
[1727239939022,1.85803983,2631.4,2631.3,8.15943488]
[1727239939394,1.47803983,2631.4,2631.3,8.15943488]
[1727239940501,3.84803983,2631.5,2631.4,0.38]
[1727239940807,2.37,2631.5,2631.4,0.38]
[1727239941102,6.17,2631.5,2631.4,0.38]
[1727239941299,2.37,2631.5,2631.4,0.38]
[1727239941502,3.84759393,2631.5,2631.4,0.38]
[1727239943508,3.84759393,2631.5,2631.4,0.7607]
[1727239946905,3.84759393,2631.5,2631.4,0.38]
[1727239947908,7.5489618,2631.5,2631.2,0.38003]
[1727239948110,3.73468705,2631.3,2631.2,0.38003]
[1727239948306,2.46468705,2631.3,2631.1,40.8]
[1727239948606,2.83278705,2631.3,2631.2,7.84486864]
[1727239948905,3.32512058,2631.3,2631.2,8.22489864]
[1727239949305,0.38004,2631.2,2630.9,0.4031]
[1727239949512,1.1,2631.0,2630.9,0.78317]
[1727239949823,2.08454988,2631.0,2630.9,49.55101099]
[1727239950402,3.35454988,2631.0,2630.9,49.55101099]
[1727239950603,2.37,2631.0,2630.9,49.55101099]
[1727239953139,0.98454988,2631.1,2631.0,0.38006]
[1727239953412,6.56172635,2631.2,2631.1,0.38005]
[1727239954314,5.95783,2631.2,2631.1,0.38005]
[1727239954514,6.94165248,2631.2,2631.1,0.38005]
[1727239955108,6.94165248,2631.2,2631.0,0.38005]
[1727239955109,6.56162248,2631.2,2631.0,0.38005]
[1727239955416,6.94166248,2631.2,2631.1,0.38005]
[1727239957012,5.95784,2631.2,2631.1,0.38005]
[1727239957322,6.94147334,2631.2,2631.1,0.38005]
[1727239957513,3.73367334,2631.2,2631.1,0.38005]
[1727239957719,6.94147334,2631.2,2631.1,0.38005]
[1727239960332,3.73367334,2631.2,2631.1,0.38005]
[1727239963224,3.35363334,2631.2,2631.1,0.38005]
[1727239964314,2.37,2631.2,2631.1,0.38005]
[1727239964517,3.73366334,2631.2,2631.1,0.38005]
[1727239964722,4.12976334,2631.2,2631.1,0.38005]
[1727239967526,3.74973334,2631.2,2631.1,0.38005]
[1727239968516,3.74999132,2631.2,2631.1,0.38005]
[1727239968721,3.35389132,2631.2,2631.1,0.38005]
[1727239968923,2.37,2631.2,2631.1,0.38005]
[1727239970324,1.47545001,2631.3,2631.2,0.38003]
[1727239970631,2.57545001,2631.3,2631.2,0.38003]
[1727239971630,1.4997,2631.4,2631.3,0.38002]
[1727239971858,2.97759126,2631.4,2631.3,0.38002]
[1727239972342,3.46696668,2631.4,2631.3,0.38002]
[1727239975327,1.4997,2631.4,2631.3,0.38002]
[1727239975625,3.95878335,2631.4,2631.3,0.38002]
[1727239975835,5.45998321,2631.4,2631.3,0.38002]
[1727239976631,5.83998321,2631.4,2631.3,0.38002]
[1727239976829,5.45998321,2631.4,2631.3,0.38002]
[1727239977828,0.38004,2631.2,2630.6,3.4346534]
[1727239978032,2.08638838,2630.7,2630.6,2.72174336]
[1727239978431,2.08638838,2630.7,2630.6,14.52130025]
[1727239979232,2.08638838,2630.7,2630.6,15.28190025]
[1727239979525,2.08638838,2630.7,2630.6,14.33163025]
[1727239979731,2.08638838,2630.7,2630.6,9.53627689]
[1727239981033,4.3078,2630.7,2630.4,0.38014]
[1727239981234,4.21136194,2630.6,2630.4,0.38014]
[1727239981462,1.97234194,2630.5,2630.4,0.38014]
[1727239981630,3.83124194,2630.6,2630.4,0.38014]
[1727239981823,4.21136194,2630.6,2630.4,0.38014]
[1727239982029,1.97234194,2630.5,2630.4,0.38014]
[1727239982234,0.38014,2630.5,2630.3,0.38015]
[1727239982531,2.97711548,2630.4,2630.3,8.22300411]
[1727239983338,2.4841264,2630.4,2630.3,7.84285411]
[1727239983641,2.97711548,2630.4,2630.3,8.22301411]
[1727239983935,1.499,2630.4,2630.3,8.22301411]
[1727239984147,2.48387914,2630.4,2630.3,8.22301411]
[1727239984342,1.87915,2630.4,2630.3,7.84285411]
[1727239984535,1.87915,2630.4,2629.9,0.75691]
[1727239984536,10.47792817,2630.4,2629.9,0.75691]
[1727239984839,2.57713275,2630.0,2629.9,0.38022]
[1727239985336,2.08410101,2630.0,2629.9,8.24711708]
[1727239985632,2.45350101,2630.0,2629.9,8.24711708]
[1727239986024,2.45350101,2630.0,2629.9,49.04711708]
[1727239986459,3.72350101,2630.0,2629.9,49.04711708]
[1727239987134,2.7394,2630.0,2629.9,49.04711708]
[1727239988227,3.1196,2630.0,2629.9,7.86689708]
[1727239988428,4.21653275,2630.0,2629.9,0.38022]
[1727239989541,2.7394,2630.0,2629.9,0.38022]
[1727239989731,3.7218435,2630.0,2629.9,0.38022]
[1727239990134,4.1020535,2630.0,2629.8,0.38023]
[1727239990332,3.3524435,2629.9,2629.8,0.38023]
[1727239991254,2.37,2629.9,2629.8,0.38023]
[1727239993347,0.9824435,2630.2,2630.1,0.38019]
[1727239993540,10.10857625,2630.7,2629.9,8.139]
[1727239993744,4.9025535,2630.7,2630.5,0.38013]
[1727239994130,0.38015,2630.4,2629.9,4.3366]
[1727239994341,2.37,2630.3,2630.2,0.38017]
[1727240001743,0.38014,2630.5,2630.3,0.38016]
[1727240001962,2.37,2630.4,2630.3,0.38016]
[1727240007552,2.75015,2630.4,2630.3,0.38016]
[1727240007853,2.75015,2630.4,2630.2,0.38017]
[1727240008048,3.4971,2630.3,2630.2,0.38017]
[1727240008476,2.2271,2630.3,2630.2,0.38017]
[1727240009948,2.60726,2630.3,2630.2,0.38018]
[1727240010446,2.60726,2630.3,2630.1,0.38018]
[1727240010646,1.1,2630.2,2630.1,0.38018]
[1727240011046,1.1,2630.2,2630.1,8.30657045]
[1727240011780,1.48018,2630.2,2630.1,7.92639045]
[1727240013251,1.1,2630.2,2630.1,8.30658045]
[1727240014457,1.48018,2630.2,2630.1,7.92639045]
[1727240016458,1.48018,2630.2,2630.1,8.30658045]
[1727240016845,1.1271,2630.3,2630.2,0.38018]
[1727240017048,1.4775,2630.3,2630.2,0.38018]
[1727240019762,1.1,2630.3,2630.2,0.38018]
[1727240019957,1.1,2630.3,2630.2,0.77628]
[1727240021362,0.98394393,2630.3,2630.2,4.1977]
[1727240021555,0.98394393,2630.5,2630.4,0.38015]
[1727240022164,0.98394393,2630.6,2630.5,0.38013]
[1727240022374,2.08394393,2630.6,2630.5,0.38013]
[1727240023564,2.57713275,2630.6,2630.5,0.38013]
[1727240024859,2.95726275,2630.6,2630.4,0.38014]
[1727240025155,2.5774625,2630.5,2630.4,8.54982048]
[1727240025383,1.1,2630.5,2630.4,8.54982048]
[1727240025557,3.44964034,2630.5,2630.4,8.16967048]
[1727240026468,3.06951034,2630.5,2630.1,3.2078]
[1727240026674,1.157,2630.4,2630.3,0.38015]
[1727240026967,1.157,2630.4,2630.3,8.27496346]
[1727240027161,1.157,2630.4,2630.3,0.38015]
[1727240027362,3.12651034,2630.4,2630.3,0.38015]
[1727240028170,2.257,2630.4,2630.3,0.38015]
[1727240029770,2.63715,2630.4,2630.3,0.38015]
[1727240030165,4.60666034,2630.4,2630.3,0.38015]
[1727240030367,4.22651034,2630.4,2630.3,0.38015]
[1727240030767,2.257,2630.4,2630.3,0.38015]
[1727240033771,4.60666034,2630.4,2630.3,0.38015]
[1727240034170,4.22651034,2630.4,2630.3,0.38015]
[1727240036570,3.84961034,2630.4,2630.3,0.38015]
[1727240036771,1.8801,2630.4,2630.3,0.38015]
[1727240037076,3.84961034,2630.4,2630.3,0.38015]
[1727240038278,4.22976034,2630.4,2630.3,0.38015]
[1727240038703,2.26025,2630.4,2630.3,0.38015]
[1727240039778,2.26025,2630.4,2630.2,0.38016]
[1727240040085,3.07330582,2630.3,2630.2,0.38016]
[1727240040376,3.07330582,2630.3,2630.2,8.47725378]
[1727240041706,3.07330582,2630.3,2630.0,1.36415336]
[1727240041981,1.1,2630.1,2630.0,0.3802]
[1727240042174,3.07319829,2630.1,2630.0,0.3802]
[1727240042380,3.44659829,2630.1,2630.0,8.59575266]
[1727240043279,1.4734,2630.1,2630.0,8.59575266]
[1727240043580,3.07319829,2630.1,2630.0,8.59575266]
[1727240045089,1.1,2630.1,2630.0,8.59575266]
[1727240045385,2.57972122,2630.1,2630.0,8.59575266]
[1727240045584,1.1,2630.1,2630.0,8.59575266]
[1727240047981,2.57971606,2630.1,2630.0,12.39815266]
[1727240052480,1.1,2630.1,2630.0,12.39815266]
[1727240052688,1.4735,2630.1,2630.0,12.39815266]
[1727240053085,1.4735,2630.1,2630.0,8.59575266]
[1727240058398,3.44669829,2630.1,2630.0,8.59575266]
[1727240065002,1.97319829,2630.1,2630.0,8.59575266]
[1727240065307,3.07319829,2630.2,2630.1,0.38019]
[1727240065801,3.07319829,2630.2,2630.1,0.76789]
[1727240069003,3.07319829,2630.2,2630.0,0.3802]
[1727240069300,3.07282916,2630.1,2630.0,8.30685882]
[1727240069807,3.07282916,2630.1,2630.0,0.3802]
[1727240070193,3.07282916,2630.1,2630.0,8.31424285]
[1727240079903,1.1,2630.1,2630.0,8.31424285]
[1727240080711,1.48019,2630.1,2630.0,8.31424285]
[1727240081311,1.1,2630.1,2630.0,8.31424285]
[1727240082714,2.60057098,2630.1,2630.0,8.31424285]
[1727240083014,2.60059669,2630.1,2630.0,8.31424285]
[1727240083313,5.06656765,2630.1,2630.0,8.31424285]
[1727240083504,2.60059669,2630.1,2630.0,8.31424285]
[1727240083704,1.1,2630.1,2630.0,8.31424285]
[1727240084007,2.60067376,2630.1,2630.0,8.31424285]
[1727240084418,5.06664472,2630.1,2630.0,8.31424285]
[1727240084914,2.60067376,2630.1,2630.0,8.31424285]
[1727240085212,5.06664472,2630.1,2630.0,8.31424285]
[1727240086614,2.60067376,2630.1,2630.0,8.31424285]
[1727240087014,5.06664472,2630.1,2630.0,8.31424285]
[1727240087923,5.06686708,2630.1,2630.0,8.31424285]
[1727240088355,1.1,2630.1,2630.0,8.31424285]
[1727240089415,2.46597096,2630.2,2630.1,0.38019]
[1727240089614,1.87425304,2630.3,2630.2,0.38018]
[1727240089615,2.46597096,2630.3,2630.2,0.38018]
[1727240089819,6.07297096,2630.4,2630.3,0.38016]
[1727240090021,7.57300194,2630.4,2630.3,0.38016]
[1727240097115,7.57256924,2630.4,2630.3,0.38016]
[1727240097511,4.36476924,2630.4,2630.3,0.38016]
[1727240100427,4.36476924,2630.4,2630.2,8.03673294]
[1727240100627,1.4822,2630.3,2630.2,8.03673294]
[1727240100824,1.1,2630.3,2630.2,0.38018]
[1727240101122,2.46597096,2630.5,2630.3,0.95041]
[1727240101320,3.9686,2630.6,2630.5,0.38013]
[1727240101321,4.32677096,2630.6,2630.5,0.38013]
[1727240101531,5.82616416,2630.6,2630.5,0.38013]
[1727240101718,1.8608,2630.6,2630.5,0.38013]
[1727240103322,3.83387205,2630.6,2630.5,0.38013]
[1727240104117,3.83387205,2630.6,2630.4,8.21019389]
[1727240104325,1.1,2630.5,2630.4,0.38013]
[1727240104625,2.59879231,2630.5,2630.4,8.55877671]
[1727240105022,2.97892981,2630.5,2630.4,8.55877671]
[1727240105235,1.48013,2630.5,2630.4,8.55877671]
[1727240105527,1.48013,2630.5,2630.4,8.17864671]
[1727240105931,1.48013,2630.5,2630.3,0.38015]
[1727240106118,2.35286624,2630.4,2630.3,0.38015]
[1727240106430,1.97271624,2630.4,2630.3,8.53178732]
[1727240108417,5.56066624,2630.4,2630.0,4.59855336]
[1727240108624,2.74471624,2630.3,2630.2,0.38016]
[1727240109632,3.12487624,2630.3,2630.2,0.38016]
[1727240109932,8.02648624,2630.3,2630.1,0.38018]
[1727240110133,2.75509624,2630.2,2630.0,3.588]
[1727240110323,1.1,2630.1,2630.0,3.588]
[1727240110628,3.07271624,2630.1,2630.0,3.588]
[1727240113331,15.06068,2630.1,2629.4,2.5723834]
[1727240113529,2.08603844,2629.5,2629.4,0.38029]
[1727240113731,2.08603844,2629.5,2629.3,0.3803]
[1727240113732,1.1,2629.5,2629.3,0.3803]
[1727240113925,2.23781546,2629.4,2629.3,0.3803]
[1727240115334,1.74414836,2629.4,2629.3,0.3803]
[1727240116241,2.23781546,2629.4,2629.3,0.3803]
[1727240116538,2.11972523,2629.4,2629.3,0.3803]
[1727240116738,1.1348,2629.4,2629.3,0.3803]
[1727240116938,2.11972058,2629.4,2629.3,0.3803]
[1727240117241,1.1348,2629.4,2629.3,0.38031]
[1727240117436,2.11944269,2629.4,2629.3,0.38031]
[1727240118835,1.1348,2629.4,2629.3,0.38031]
[1727240119031,2.11944269,2629.4,2629.3,0.38031]
[1727240120238,1.1348,2629.4,2629.3,0.38031]
[1727240121335,1.1348,2629.4,2629.2,0.75861]
[1727240121533,1.48031,2629.3,2629.2,0.3783]
[1727240121731,2.46495269,2629.3,2629.0,0.3956]
[1727240121937,1.1,2629.1,2629.0,0.77595]
[1727240122144,1.1,2629.1,2629.0,8.79191949]
[1727240122345,0.98464269,2629.3,2629.2,0.38032]
[1727240122546,1.74354269,2629.4,2629.3,0.38031]
[1727240122760,1.1,2629.3,2629.2,0.38031]
[1727240122943,2.08348794,2629.3,2629.2,0.38031]
[1727240123139,2.46379794,2629.3,2629.2,0.38031]
[1727240123440,2.08348794,2629.3,2629.2,0.38031]
[1727240123644,1.1,2629.3,2629.2,0.38031]
[1727240123844,1.4716,2629.3,2629.2,0.38031]
[1727240125445,0.7589,2629.4,2629.3,0.38031]
[1727240125652,1.8589,2629.4,2629.3,0.38031]
[1727240126349,5.6621,2629.4,2629.3,0.38031]
[1727240126536,5.6621,2629.4,2629.0,8.41156949]
[1727240126741,1.1,2629.1,2629.0,8.79191949]
[1727240133152,1.1,2629.1,2629.0,8.41156949]
[1727240133343,1.1,2629.1,2629.0,0.77595]
[1727240139047,11.28434,2629.1,2628.9,0.38036]
[1727240139354,1.8612,2629.0,2628.9,0.38036]
[1727240141455,1.1,2629.0,2628.9,0.38036]
[1727240146545,1.1,2629.0,2628.8,0.77257]
[1727240146856,0.3955,2628.9,2628.8,0.77257]
[1727240147064,1.1604,2628.9,2628.8,0.77257]
[1727240147554,1.1604,2628.9,2628.8,0.38037]
[1727240147857,1.54076,2628.9,2628.7,0.38039]
[1727240148053,1.1,2628.8,2628.7,0.38039]
[1727240154973,0.3804,2628.7,2628.5,0.38041]
[1727240155263,2.08348794,2628.6,2628.5,0.38042]
[1727240155470,9.49198794,2628.6,2628.5,0.38042]
[1727240155686,8.5085,2628.6,2628.5,0.38042]
[1727240156465,9.98741546,2628.6,2628.5,0.38042]
[1727240157169,7.16002546,2628.6,2628.5,0.38042]
[1727240157367,10.36782546,2628.6,2628.4,0.38043]
[1727240157561,2.84199633,2628.5,2628.4,0.38043]
[1727240158163,1.74199633,2628.5,2628.4,0.38043]
[1727240158370,2.84199633,2628.5,2628.4,0.38043]
[1727240158858,6.64679633,2628.5,2628.4,0.38043]
[1727240160673,2.84199633,2628.5,2628.4,0.38043]
[1727240165166,2.84199633,2628.5,2628.2,7.87301307]
[1727240165371,1.1,2628.3,2628.2,8.25347307]
[1727240166268,1.1,2628.3,2628.1,0.3726]
[1727240166484,5.19109633,2628.2,2628.0,0.38049]
[1727240166684,1.853,2628.1,2627.8,0.38052]
[1727240166977,1.853,2628.1,2627.7,0.375]
[1727240166978,0.38052,2627.8,2627.7,1.11826044]
[1727240167178,0.38052,2627.8,2627.1,0.00810578]
[1727240167179,0.38054,2627.7,2627.5,0.38056]
[1727240167387,1.4715,2627.6,2627.5,0.38056]
[1727240167574,4.55766,2627.6,2627.4,0.78407]
[1727240167770,2.08331544,2627.5,2627.4,0.78407]
[1727240168403,1.1,2627.5,2627.4,0.78407]
[1727240169775,0.98331544,2627.7,2627.6,0.38055]
[1727240169981,3.2078,2627.8,2627.7,0.38054]
[1727240171067,4.3078,2627.8,2627.7,0.38054]
[1727240173075,1.1,2627.8,2627.7,0.76774]
[1727240174270,1.1,2627.8,2627.7,4.57334]
[1727240175272,1.33631544,2628.3,2628.1,0.38047]
[1727240175475,1.76025544,2628.4,2628.2,1.13956]
[1727240175873,1.37981544,2628.4,2628.2,0.7591]
[1727240176073,1.76025544,2628.4,2628.2,1.13956]
[1727240176284,1.37981544,2628.4,2628.2,1.13956]
[1727240176480,1.76025544,2628.4,2628.2,1.13956]
[1727240176686,1.1,2628.3,2628.2,1.13956]
[1727240176886,1.37981544,2628.4,2628.3,0.38045]
[1727240177089,2.47981544,2628.4,2628.2,1.13955]
[1727240177986,2.86025544,2628.4,2628.2,1.13955]
[1727240178679,2.47981544,2628.4,2628.3,0.38045]
[1727240178878,2.08331544,2628.4,2628.3,0.38045]
[1727240179183,1.1,2628.4,2628.3,0.74945]
[1727240180593,5.88811544,2628.4,2628.2,0.7591]
[1727240180779,0.38048,2628.2,2627.5,3.2958]
[1727240181010,0.3728,2628.1,2628.0,0.38049]
[1727240181990,0.38048,2628.2,2628.1,0.38048]
[1727240182187,1.48048,2628.2,2628.0,0.38049]
[1727240182489,1.1,2628.1,2628.0,0.38049]
[1727240185188,2.08331544,2628.3,2628.2,0.38046]
[1727240185389,1.1,2628.3,2628.2,0.38046]
[1727240185880,1.1,2628.3,2628.2,0.76586]
[1727240186685,2.46376544,2628.3,2628.2,0.3854]
[1727240186887,2.46376544,2628.3,2628.1,0.78307]
[1727240187188,2.46376544,2628.3,2628.2,0.38046]
[1727240187389,1.48045,2628.3,2628.2,0.38046]
[1727240187597,1.1,2628.3,2628.2,0.38046]
[1727240187795,2.08269447,2628.3,2628.2,0.38046]
[1727240187992,2.08269447,2628.3,2628.2,0.76586]
[1727240188891,0.98269447,2628.3,2628.2,0.76586]
[1727240189097,1.1,2628.4,2628.3,0.38045]
[1727240191385,2.08269447,2628.4,2628.3,0.38045]
[1727240193302,1.1,2628.4,2628.3,0.38045]
[1727240193492,2.08269447,2628.4,2628.3,0.38045]
[1727240194187,1.1,2628.4,2628.3,0.38045]
[1727240194384,2.96583946,2628.4,2628.3,0.38045]
[1727240195089,3.73627946,2628.4,2628.2,0.76586]
[1727240195297,2.08378085,2628.3,2628.2,0.3854]
[1727240195599,2.95528946,2628.3,2628.2,0.3854]
[1727240197292,2.95528946,2628.3,2627.9,0.38049]
[1727240197293,0.38048,2628.1,2627.9,0.38049]
[1727240197509,2.08415022,2628.0,2627.9,0.38049]
[1727240197995,2.47825022,2628.0,2627.9,8.2444552]
[1727240198303,2.87435022,2628.0,2627.9,8.2444552]
[1727240198995,3.36642533,2628.0,2627.9,8.2444552]
[1727240199706,0.38054,2627.7,2627.2,0.088]
[1727240200001,1.37845103,2627.6,2627.5,0.38057]
[1727240200300,0.7632,2627.6,2627.5,0.38057]
[1727240200491,1.74755522,2627.6,2627.5,0.38057]
[1727240200999,0.98435522,2627.6,2627.5,0.38057]
[1727240201501,2.08435522,2627.6,2627.5,0.38057]
[1727240202797,2.08435522,2627.6,2627.4,0.38058]
[1727240202993,1.1,2627.5,2627.4,0.38058]
[1727240203506,2.08435522,2627.5,2627.4,0.38058]
[1727240203893,1.1,2627.5,2627.4,0.38058]
[1727240205599,2.08435522,2627.5,2627.4,0.38058]
[1727240206498,1.1,2627.5,2627.4,0.38058]
[1727240211600,0.98435522,2627.9,2627.5,0.38057]
[1727240211810,0.98435522,2628.0,2627.9,0.38051]
[1727240212015,2.08435522,2628.0,2627.9,0.38051]
[1727240213296,2.0848681,2628.0,2627.9,0.38051]
[1727240213496,1.1,2628.0,2627.9,0.38051]
[1727240213701,2.08491807,2628.0,2627.9,0.38051]
[1727240214409,1.1,2628.0,2627.9,0.38051]
[1727240214910,2.08503204,2628.0,2627.9,0.38051]
[1727240215304,2.08503204,2628.0,2627.9,8.46892816]
[1727240215808,0.98503204,2628.0,2627.9,8.46892816]
[1727240216010,0.98503204,2628.0,2627.9,14.32580816]
[1727240216311,0.98503204,2628.1,2628.0,1.33173]
[1727240216503,1.47644515,2628.3,2628.1,0.38048]
[1727240216504,0.98503204,2628.2,2628.1,0.38048]
[1727240216704,0.98503204,2628.2,2628.1,0.78468]
[1727240216902,0.98503204,2628.2,2628.1,12.60115729]
[1727240219211,0.98503204,2628.3,2628.2,0.38046]
[1727240219411,2.57644515,2628.4,2628.3,0.38045]
[1727240219614,2.57644515,2628.4,2628.3,8.42546837]
[1727240220104,2.57644515,2628.4,2628.3,0.38045]
[1727240221003,1.1,2628.4,2628.3,0.38045]
[1727240221408,1.482,2628.4,2628.3,0.38045]
[1727240221614,1.482,2628.4,2628.2,0.38046]
[1727240221804,2.57738524,2628.3,2627.7,44.0078]
[1727240222005,1.1,2627.8,2627.6,0.4046]
[1727240222207,1.1,2627.8,2627.7,0.3763]
[1727240222403,1.1,2627.8,2627.7,49.36106498]
[1727240222601,1.1,2627.8,2627.7,53.16666498]
[1727240223203,4.9056,2627.8,2627.6,0.38054]
[1727240223508,3.02272432,2627.7,2627.4,0.38057]
[1727240223707,1.1,2627.5,2627.4,0.38057]
[1727240224103,1.1,2627.5,2627.4,8.21351316]
[1727240224412,3.36469787,2627.5,2627.4,8.21351316]
[1727240224614,3.36469787,2627.5,2627.4,7.83294316]
[1727240224615,6.57249787,2627.5,2627.4,7.83294316]
[1727240224804,0.38059,2627.4,2627.1,0.38872578]
[1727240225006,2.38,2627.2,2627.1,0.38872578]
[1727240225199,2.38,2627.2,2627.1,0.00810578]
[1727240225200,5.5878,2627.2,2627.1,0.00810578]
[1727240225413,7.46644479,2627.2,2627.1,0.38872578]
[1727240225610,0.98421925,2627.2,2627.1,0.38872578]
[1727240225813,3.36421925,2627.3,2627.2,0.38061]
[1727240226205,0.98421925,2627.3,2627.2,4.18701]
[1727240226401,0.98421925,2627.4,2627.3,0.38059]
[1727240226611,0.98421925,2627.6,2627.3,3.8064]
[1727240226915,0.98421925,2627.6,2627.5,0.38057]
[1727240227112,1.86674479,2627.7,2627.6,0.38055]
[1727240227113,0.3904,2627.7,2627.6,0.38055]
[1727240227308,0.98421925,2627.8,2627.7,0.38054]
[1727240227619,1.38651925,2627.9,2627.8,0.38052]
[1727240227806,0.98421925,2627.9,2627.8,0.38052]
[1727240232313,1.36061925,2628.0,2627.9,0.38051]
[1727240233213,1.36087608,2628.0,2627.9,0.38051]
[1727240237211,4.62914479,2628.0,2627.9,0.38051]
[1727240240525,4.63021199,2628.0,2627.9,0.38051]
[1727240241320,3.1528,2628.0,2627.9,0.38051]
[1727240241622,3.5333,2628.0,2627.8,0.38052]
[1727240241822,3.85748875,2627.9,2627.8,0.38052]
[1727240242013,3.85748875,2627.9,2627.8,8.42128946]
[1727240246325,3.85748875,2627.9,2627.8,8.04076946]
[1727240246528,3.85748875,2627.9,2627.8,8.42128946]
[1727240247521,2.76051,2627.9,2627.8,8.04076946]
[1727240247719,4.35207689,2627.9,2627.8,8.42128946]
[1727240247918,4.35207689,2627.9,2627.8,0.38052]
[1727240248130,4.35207689,2627.9,2627.8,8.2022138]
[1727240250732,2.76051,2627.9,2627.8,0.38052]
[1727240250932,2.38,2627.9,2627.5,0.4019]
[1727240251130,2.38,2627.9,2627.5,0.78246]
[1727240251131,3.85820671,2627.6,2627.5,0.78246]
[1727240251337,2.76055,2627.6,2627.5,0.38056]
[1727240251641,3.14265,2627.6,2627.5,0.38056]
[1727240251830,2.7621,2627.6,2627.5,0.38056]
[1727240252254,4.240219,2627.6,2627.5,0.38056]
[1727240252727,2.7621,2627.6,2627.5,0.38056]
[1727240252924,4.24023808,2627.6,2627.5,0.38056]
[1727240253931,3.14266,2627.6,2627.3,0.3747]
[1727240254129,1.87860858,2627.5,2627.4,0.38057]
[1727240254333,1.87860858,2627.5,2627.4,8.2161105]
[1727240254829,1.87860858,2627.5,2627.4,7.8355405]
[1727240255036,1.87860858,2627.5,2627.4,0.38058]
[1727240256133,0.78107,2627.5,2627.4,0.38058]
[1727240256433,3.6083,2627.5,2627.4,0.38058]
[1727240257433,5.08609397,2627.5,2627.4,0.38058]
[1727240258134,1.87829397,2627.5,2627.4,0.38058]
[1727240266136,0.4005,2627.5,2627.4,0.38058]
[1727240271033,0.4005,2627.5,2627.3,0.75528]
[1727240271330,4.23893031,2627.4,2627.3,0.3747]
[1727240271529,4.23893031,2627.4,2627.3,0.75529]
[1727240271735,2.76058,2627.4,2627.3,0.75529]
[1727240271934,2.38,2627.4,2627.3,0.75529]
[1727240272136,6.56698,2627.4,2627.3,0.3747]
[1727240273437,6.56698,2627.4,2627.3,0.75529]
[1727240273635,7.66469866,2627.4,2627.3,0.75529]
[1727240273827,2.38,2627.4,2627.3,0.75529]
[1727240274027,6.56698,2627.4,2627.3,0.75529]
[1727240274243,8.04522187,2627.4,2627.3,0.75529]
[1727240274639,8.04522187,2627.4,2627.3,0.3747]
[1727240275139,11.25298918,2627.4,2627.3,0.3747]